lending/lending_fUSD_20240504
["ID","MTS","AMOUNT","RATE_DAILY","PERIOD"]
[325390208,1714804329101,-1444.23,0.00042191,34]
[325390209,1714804329111,-500.0,0.00042191,34]
[325390210,1714804329120,-761.8,0.00042191,34]
[325390211,1714804329129,-961.56,0.00042191,34]
[325390212,1714804329139,-507.83,0.00042191,2]
[325390213,1714804329148,-1168.68,0.00042191,34]
[325390214,1714804329157,-821.47,0.00042191,34]
[325390215,1714804329166,-1417.67,0.00042191,34]
[325390216,1714804329176,-1214.66,0.00042191,34]
[325390217,1714804329185,-1108.1,0.00042191,34]
[325390218,1714804329195,-1117.94,0.00042191,34]
[325390219,1714804329204,-504.03075017,0.00042191,34]
[325390220,1714804329213,-500.0,0.00042191,34]
[325390221,1714804329222,-500.0,0.00042191,34]
[325390222,1714804329231,-1253.45,0.00042191,34]
[325390223,1714804329241,-560.73695197,0.00042191,34]
[325390224,1714804329251,-546.84420975,0.00042191,34]
[325390225,1714804329261,-500.0,0.00042191,34]
[325390226,1714804329271,-608.67,0.00042191,34]
[325390227,1714804329280,-1705.9,0.00042191,34]
[325390228,1714804329290,-500.0,0.00042191,34]
[325390229,1714804329300,-500.0,0.00042191,34]
[325390230,1714804329310,-989.33,0.00042191,34]
[325390231,1714804329319,-500.0,0.00042191,34]
[325390232,1714804329329,-500.0,0.00042191,34]
[325390233,1714804329338,-500.0,0.00042191,34]
[325390234,1714804329348,-1148.55,0.00042191,34]
[325390235,1714804329358,-500.0,0.00042191,34]
[325390236,1714804329368,-153.62915748,0.00042191,34]
[325390237,1714804329378,-962.07,0.00042191,34]
[325390238,1714804329387,-799.27,0.00042191,34]
[325390239,1714804329397,-1273.17,0.00042191,34]
[325390240,1714804329406,-500.0,0.00042191,34]
[325390241,1714804329416,-500.0,0.00042191,34]
[325390242,1714804329426,-500.0,0.00042191,34]
[325390243,1714804329435,-500.0,0.00042191,34]
[325390244,1714804329445,-743.85,0.00042191,34]
[325390245,1714804329455,-1314.71,0.00042191,34]
[325390246,1714804329465,-500.0,0.00042191,34]
[325390247,1714804329593,-500.0,0.00042191,34]
[325390248,1714804329606,-500.0,0.00042191,34]
[325390249,1714804329617,-217.35,0.00042191,34]
[325390250,1714804329627,-1040.47,0.00042191,2]
[325390251,1714804329636,-982.9,0.00042191,34]
[325390252,1714804329647,-937.01,0.00042191,34]
[325390253,1714804329656,-1558.67,0.00042191,34]
[325390254,1714804329666,-500.0,0.00042191,34]
[325390255,1714804329675,-500.0,0.00042191,34]
[325390256,1714804329687,-500.0,0.00042191,34]
[325390257,1714804329696,-500.0,0.00042191,34]
[325390258,1714804329705,-615.9,0.00042191,34]
[325390259,1714804329715,-978.41,0.00042191,34]
[325390260,1714804329724,-808.14,0.00042191,34]
[325390261,1714804329734,-500.0,0.00042191,34]
[325390262,1714804329744,-513.67648927,0.00042191,34]
[325390263,1714804329754,-500.0,0.00042191,34]
[325390264,1714804329763,-500.0,0.00042191,34]
[325390265,1714804329773,-500.0,0.00042191,34]
[325390266,1714804329782,-330.07268516,0.00042191,34]
[325390267,1714804331203,-151.0,0.00032877,7]
[325390268,1714804331212,-151.0,0.00032877,7]
[325390269,1714804331222,-238.005019,0.00032877,7]
[325390270,1714804331232,-1043.8,0.00036595,2]
[325390271,1714804331242,-419.66,0.00036595,2]
[325390272,1714804331252,-419.66,0.00036595,2]
[325390273,1714804331261,-500.0,0.00041095,30]
[325390274,1714804331271,-3419.12786666,0.00041095,30]
[325390275,1714804331296,-823.87613788,0.00041095,30]
[325390276,1714804331309,-1544.93599546,0.00041095,30]
[325390277,1714804331318,-500.0,0.00041369,31]
[325390278,1714804331328,-5787.94,0.00041369,31]
[325390279,1714804331337,-500.0,0.00041643,32]
[325390280,1714804331346,-2406.32,0.00041917,33]
[325390281,1714804331355,-455.88278904,0.00041917,33]
[325390282,1714804331364,-169.92731484,0.00042191,34]
[325390283,1714804331374,-500.0,0.00042191,34]
[325390284,1714804331383,-500.0,0.00042191,34]
[325390285,1714804331702,-500.0,0.00042191,34]
[325390286,1714804331723,-1124.12,0.00042191,34]
[325390287,1714804331733,-500.0,0.00042191,34]
[325390288,1714804331744,-1144.96,0.00042191,34]
[325390289,1714804331755,-500.0,0.00042191,34]
[325390290,1714804331765,-1188.07,0.00042191,34]
[325390291,1714804331774,-500.0,0.00042191,34]
[325390292,1714804331783,-939.08,0.00042191,34]
[325390293,1714804331793,-1212.15,0.00042191,34]
[325390294,1714804331802,-500.0,0.00042191,34]
[325390295,1714804331811,-519.53,0.00042191,34]
[325390296,1714804331821,-1209.83,0.00042191,34]
[325390297,1714804331830,-500.0,0.00042191,34]
[325390298,1714804331839,-777.58,0.00042191,34]
[325390299,1714804331848,-500.0,0.00042191,34]
[325390300,1714804331859,-500.0,0.00042191,34]
[325390301,1714804331869,-1124.58,0.00042191,34]
[325390302,1714804331878,-500.0,0.00042191,34]
[325390303,1714804331887,-843.79,0.00042191,34]
[325390304,1714804331896,-500.0,0.00042191,34]
[325390305,1714804331906,-500.0,0.00042191,34]
[325390306,1714804331916,-1945.55,0.00042191,34]
[325390307,1714804331925,-1587.86,0.00042191,34]
[325390308,1714804331934,-991.37,0.00042191,34]
[325390309,1714804331944,-500.0,0.00042191,34]
[325390310,1714804331953,-587.52390066,0.00042191,34]
[325390311,1714804331980,-1197.04609934,0.00042191,34]
[325390312,1714804331991,-500.0,0.00042191,34]
[325390313,1714804332001,-1768.02,0.00042191,34]
[325390314,1714804332010,-500.0,0.00042191,34]
[325390315,1714804332020,-1611.69,0.00042191,2]
[325390316,1714804332029,-500.0,0.00042191,34]
[325390317,1714804332040,-250.25622328,0.00042191,34]
[325390318,1714804332052,-492.40673128,0.00042191,34]
[325390342,1714805433031,-5212.03076753,0.00012757,2]
[325390343,1714805433040,-4788.24123247,0.00012757,2]
[325390344,1714805433052,-423.78953506,0.00012757,2]
[325390345,1714805433061,-5212.03076753,0.00012758,2]
[325390346,1714805433071,-1000.0,0.00012759,2]
[325390347,1714805433080,-150.0,0.00012763,2]
[325390348,1714805433091,-252.81992587,0.00012868,2]
[325390349,1714805433100,-6487.9861,0.000129,2]
[325390350,1714805433109,-2872.8686,0.000129,2]
[325390351,1714805433119,-155.0,0.00012998,2]
[325390352,1714805433128,-195.81598208,0.00012998,2]
[325390353,1714805433138,-370.02610625,0.00012998,2]
[325390354,1714805433148,-199.94312998,0.00012998,2]
[325390355,1714805433157,-237.02687238,0.00012998,2]
[325390356,1714805433167,-529.63476381,0.00014998,2]
[325390357,1714805433176,-228.64758728,0.00014998,2]
[325390358,1714805433186,-1040.945855,0.00015,2]
[325390359,1714805433195,-3434.76478476,0.00015,2]
[325390360,1714805433207,-3156.15,0.00015,2]
[325390361,1714805433218,-1647.10744656,0.00015,2]
[325390362,1714805433232,-2924.74005624,0.00015,2]
[325390363,1714805433243,-684.71908266,0.00015,2]
[325390382,1714805438109,-18074.11220965,0.00015,2]
[325390383,1714805438120,-2010.66061732,0.00015,2]
[325390384,1714805438131,-5180.7408274,0.00015,2]
[325390400,1714805439942,-280.75982584,0.00015,2]
[325390401,1714805439952,-617.81945781,0.00015,2]
[325390402,1714805439962,-450.0,0.00018,3]
[325390403,1714805439972,-10000.0,0.00018501,2]
[325390404,1714805439982,-372.24,0.0001934,2]
[325390405,1714805439993,-160.09,0.0001934,2]
[325390406,1714805440003,-387.6,0.00019415,2]
[325390407,1714805440013,-250.0,0.00019477,2]
[325390408,1714805440023,-1258.0,0.00019618,2]
[325390409,1714805440032,-1057.0,0.00019618,2]
[325390410,1714805440042,-500.0,0.00019702,2]
[325390411,1714805440051,-2162.7079,0.000199,2]
[325390412,1714805440060,-648.6939,0.000199,2]
[325390413,1714805440069,-166.23,0.0001994,2]
[325390414,1714805440079,-1259.16438446,0.0002,2]
[325390415,1714805440088,-5175.72990395,0.0002,2]
[325390416,1714805440097,-6227.01127323,0.0002,2]
[325390417,1714805440107,-500.0,0.0002,3]
[325390418,1714805440117,-155.0,0.000209,2]
[325390419,1714805440127,-156.44,0.00021644,2]
[325390420,1714805440136,-372.24,0.00021757,2]
[325390421,1714805440146,-387.6,0.00021841,2]
[325390422,1714805440155,-4433.34969147,0.000219,2]
[325390423,1714805440164,-2000.0,0.00021918,2]
[325390424,1714805440174,-250.0,0.00021918,2]
[325390425,1714805440183,-550.0,0.00022,3]
[325390426,1714805440192,-166.56,0.00022237,2]
[325390427,1714805440202,-1258.0,0.00022618,2]
[325390428,1714805440211,-1057.0,0.00022618,2]
[325390429,1714805440220,-2000.61208485,0.000234,2]
[325390430,1714805440230,-227733.8693,0.000239,2]
[325390432,1714805440242,-1921.89750815,0.00023975,2]
[325390434,1714805440251,-600.0,0.00024,3]
[325390436,1714805440261,-341479.66957299,0.00024,3]
[325390438,1714805440271,-372.24,0.00024175,2]
[325390440,1714805440280,-387.6,0.00024268,2]
[325390442,1714805440290,-159.56,0.00024329,15]
[325390444,1714805440299,-155.0,0.00025,2]
[325390446,1714805440309,-5000.0,0.00025,2]
[325390448,1714805440318,-456.66329758,0.00025,7]
[325390450,1714805440327,-536.197,0.00025618,2]
[325390452,1714805440336,-526.439,0.00025618,2]
[325390454,1714805440346,-650.0,0.00026,3]
[325390456,1714805440355,-372.24,0.00026592,120]
[325390458,1714805440365,-1921.8975081,0.00026641,2]
[325390460,1714805440374,-387.6,0.00026695,2]
[325390462,1714805440384,-1000.0,0.00027397,30]
[325390464,1714805440393,-156.44,0.00027714,2]
[325390466,1714805440403,-700.0,0.00028,3]
[325390468,1714805440413,-372.24,0.0002901,120]
[325390470,1714805440423,-387.6,0.00029122,2]
[325390472,1714805440433,-1921.8975081,0.00029308,2]
[325390474,1714805440443,-721.55,0.00029479,2]
[325390476,1714805440452,-155.0,0.000295,3]
[325390478,1714805440462,-5677.45044794,0.0003,2]
[325390480,1714805440472,-750.0,0.0003,3]
[325390482,1714805440481,-716.17723846,0.00030135,4]
[325390484,1714805440493,-150.0,0.00030573,2]
[325390486,1714805440503,-898.42351679,0.00030573,30]
[325390488,1714805440513,-1000.0,0.00030573,2]
[325390490,1714805440522,-828.94225102,0.00030573,2]
[325390492,1714805440532,-1000.0,0.00031624,2]
[325390494,1714805440542,-400.0,0.0003185,120]
[325390496,1714805440552,-1921.8975081,0.00031974,2]
[325390498,1714805440561,-196.29685838,0.00032344,7]
[325390500,1714805440571,-155.88263556,0.00032709,7]
[325390502,1714805440581,-155.52891643,0.00032769,7]
[325390504,1714805440591,-800.0,0.00032849,2]
[325390507,1714805440601,-150.0,0.00033,2]
[325390509,1714805440611,-155.52891643,0.00033089,7]
[325390511,1714805440622,-200.0,0.00033327,10]
[325390513,1714805440631,-5683.74682648,0.00033483,4]
[325390515,1714805440641,-425.14284499,0.00033484,4]
[325390517,1714805440651,-153.33265497,0.00033524,7]
[325390519,1714805440660,-156.44,0.00033785,2]
[325390521,1714805440670,-155.52891643,0.00033963,7]
[325390523,1714805440680,-155.52891643,0.000346,7]
[325390525,1714805440689,-159.56,0.00034603,15]
[325390527,1714805440699,-1921.8975081,0.0003464,2]
[325390529,1714805440708,-155.52891643,0.00034759,7]
[325390531,1714805440718,-26330.23490107,0.000349,2]
[325390533,1714805440727,-1285.12188479,0.00035,4]
[325390535,1714805440738,-155.52891643,0.00035058,7]
[325390537,1714805440747,-1000.0,0.00035578,2]
[325390539,1714805440757,-898.49299862,0.000356,30]
[325390541,1714805440766,-419.24,0.00035773,2]
[325390543,1714805440776,-400.0,0.00035831,120]
[325390545,1714805440785,-155.52891643,0.00036115,7]
[325390547,1714805440795,-155.99578958,0.00037046,7]
[325390549,1714805440805,-1921.8975081,0.00037306,2]
[325390551,1714805440814,-155.52891643,0.00037313,7]
[325390553,1714805440823,-196.29685838,0.00037344,7]
[325390555,1714805440833,-196.2968584,0.00037591,7]
[325390557,1714805440842,-155.52891643,0.00037734,7]
[325390559,1714805440851,-572.0,0.00037792,5]
[325390561,1714805440860,-2000.88082274,0.00038,30]
[325390563,1714805440870,-181.050415,0.00038498,36]
[325390565,1714805440879,-279.94872136,0.00038519,7]
[325390567,1714805440888,-500.0,0.0003878,10]
[325390569,1714805440898,-500.0,0.0003878,10]
[325390571,1714805440907,-1000.0,0.00038904,120]
[325390573,1714805440921,-155.99578958,0.00039036,7]
[325390575,1714805440931,-155.52732108,0.00039315,7]
[325390577,1714805440941,-155.88263556,0.0003941,7]
[325390579,1714805440950,-155.52891643,0.00039477,7]
[325390581,1714805440960,-181.050415,0.00039498,38]
[325390582,1714805440969,-152.07885132,0.00039514,7]
[325390583,1714805440979,-151.50478802,0.00039519,2]
[325390584,1714805440989,-1000.0,0.00039531,2]
[325390585,1714805440999,-268.2,0.00039697,14]
[325390586,1714805441010,-400.0,0.00039813,120]
[325390587,1714805441021,-156.44,0.00039856,2]
[325390588,1714805441031,-500.0,0.00039876,10]
[325390589,1714805441041,-500.0,0.00039876,10]
[325390607,1714805441357,-1921.8975081,0.00039973,2]
[325390608,1714805441386,-197.0,0.0004,29]
[325390609,1714805441396,-1218.18227262,0.0004,120]
[325390610,1714805441406,-500.0,0.00040229,30]
[325390611,1714805441415,-500.0,0.00040413,30]
[325390612,1714805441427,-155.52891643,0.00040485,30]
[325390613,1714805441436,-185.050415,0.00040498,40]
[325390614,1714805441446,-197.0,0.000405,30]
[325390615,1714805441455,-150.0,0.00040519,2]
[325390616,1714805441465,-500.0,0.00040687,30]
[325390617,1714805441475,-153.33265497,0.0004091,30]
[325390618,1714805441484,-500.0,0.0004096,30]
[325390619,1714805441495,-155.15597951,0.0004097,2]
[325390620,1714805441505,-500.0,0.00040972,10]
[325390621,1714805441514,-500.0,0.00040972,10]
[325390622,1714805441524,-64714.04922891,0.0004098,2]
[325390623,1714805441533,-6474.31570673,0.00040995,15]
[325390624,1714805441543,-177.18201028,0.00040995,15]
[325390625,1714805441552,-10000.0,0.00040995,120]
[325390626,1714805441562,-4372.6813,0.00040995,120]
[325390627,1714805441572,-639.92743495,0.00040996,5]
[325390628,1714805441581,-471.19309113,0.00040996,4]
[325390629,1714805441591,-541.65439142,0.00040997,5]
[325390630,1714805441600,-17686.11973703,0.00040998,4]
[325390631,1714805441610,-376.13730751,0.00040998,4]
[325390632,1714805441620,-1540.6255,0.00040998,4]
[325390633,1714805441630,-2607.3114918,0.00040999,4]
[325390634,1714805441640,-2043.10730639,0.00040999,4]
[325390635,1714805441650,-1739.47133011,0.00040999,4]
[325390636,1714805441659,-197.0,0.00041,30]
[325390637,1714805441668,-156.00484066,0.00041,60]
[325390638,1714805441678,-425.43437761,0.00041093,4]
[325390639,1714805441687,-1768.70416813,0.00041093,4]
[325390640,1714805441696,-379662.67768006,0.00041095,13]
[325390641,1714805441706,-675.04,0.00041095,30]
[325390642,1714805441716,-460.87914049,0.00041095,30]
[325390643,1714805441725,-500.0,0.00041095,30]
[325390644,1714805441735,-500.0,0.00041095,30]
[325390645,1714805441745,-735.92,0.00041095,30]
[325390646,1714805441754,-509.82,0.00041095,30]
[325390647,1714805441764,-500.0,0.00041095,30]
[325390648,1714805441773,-500.0,0.00041095,30]
[325390649,1714805441783,-500.0,0.00041095,30]
[325390650,1714805441792,-899.89,0.00041095,30]
[325390651,1714805441802,-500.0,0.00041095,30]
[325390652,1714805441811,-500.0,0.00041095,30]
[325390653,1714805441821,-500.0,0.00041095,2]
[325390654,1714805441830,-839.13,0.00041095,30]
[325390655,1714805441840,-575.72,0.00041095,30]
[325390656,1714805441850,-500.0,0.00041095,30]
[325390657,1714805441859,-343.21252516,0.00041095,30]
[325390658,1714805441868,-500.0,0.00041095,30]
[325390659,1714805441878,-500.0,0.00041095,30]
[325390660,1714805441887,-552.74,0.00041095,30]
[325390661,1714805441896,-675.16,0.00041095,30]
[325390662,1714805441906,-500.0,0.00041095,30]
[325390663,1714805441921,-500.0,0.00041095,30]
[325390664,1714805441930,-500.0,0.00041095,30]
[325390665,1714805441940,-500.0,0.00041095,30]
[325390666,1714805441949,-500.0,0.00041095,30]
[325390667,1714805441960,-943.78,0.00041095,30]
[325390668,1714805441969,-500.0,0.00041095,30]
[325390669,1714805441978,-579.0,0.00041095,30]
[325390670,1714805441988,-500.0,0.00041095,30]
[325390671,1714805441998,-236.88817298,0.00041095,30]
[325390672,1714805442007,-619.84,0.00041095,30]
[325390673,1714805442016,-500.0,0.00041095,30]
[325390674,1714805442026,-523.53,0.00041095,30]
[325390675,1714805442035,-500.0,0.00041095,30]
[325390676,1714805442044,-1092.03,0.00041095,30]
[325390677,1714805442054,-500.0,0.00041095,30]
[325390678,1714805442063,-500.0,0.00041095,30]
[325390679,1714805442073,-500.0,0.00041095,30]
[325390680,1714805442082,-500.0,0.00041095,30]
[325390681,1714805442092,-500.0,0.00041095,30]
[325390682,1714805442101,-155.41031049,0.00041095,30]
[325390683,1714805442111,-882.05,0.00041095,30]
[325390684,1714805442120,-500.0,0.00041095,30]
[325390685,1714805442130,-500.0,0.00041095,30]
[325390686,1714805442141,-500.0,0.00041095,30]
[325390687,1714805442150,-500.0,0.00041095,30]
[325390688,1714805442159,-554.78,0.00041095,30]
[325390689,1714805442169,-1522.62,0.00041095,30]
[325390690,1714805442178,-500.0,0.00041095,30]
[325390691,1714805442187,-500.0,0.00041095,30]
[325390692,1714805442197,-500.0,0.00041095,30]
[325390693,1714805442206,-500.0,0.00041095,30]
[325390694,1714805442216,-611.3,0.00041095,30]
[325390695,1714805442225,-500.0,0.00041095,30]
[325390696,1714805442235,-1413.54,0.00041095,30]
[325390697,1714805442246,-500.0,0.00041095,30]
[325390698,1714805442256,-789.42,0.00041095,30]
[325390699,1714805442265,-500.0,0.00041095,30]
[325390700,1714805442275,-500.0,0.00041095,30]
[325390701,1714805442284,-500.0,0.00041095,30]
[325390702,1714805442294,-983.92,0.00041095,30]
[325390703,1714805442303,-722.72,0.00041095,30]
[325390704,1714805442313,-500.0,0.00041095,30]
[325390705,1714805442322,-1368.8,0.00041095,30]
[325390706,1714805442331,-500.0,0.00041095,30]
[325390707,1714805442341,-500.0,0.00041095,30]
[325390708,1714805442350,-502.94050344,0.00041095,30]
[325390709,1714805442359,-750.0,0.00041095,30]
[325390710,1714805442368,-1450.19,0.00041095,30]
[325390711,1714805442378,-500.0,0.00041095,30]
[325390712,1714805442388,-500.0,0.00041095,30]
[325390713,1714805442397,-1344.58,0.00041095,30]
[325390714,1714805442407,-321.35468967,0.00041095,30]
[325390715,1714805442416,-500.0,0.00041095,30]
[325390716,1714805442427,-553.54307228,0.00041095,30]
[325390717,1714805442437,-970.95,0.00041095,30]
[325390718,1714805442447,-500.0,0.00041095,30]
[325390719,1714805442456,-500.0,0.00041095,30]
[325390720,1714805442466,-500.0,0.00041095,30]
[325390721,1714805442475,-941.8,0.00041095,30]
[325390722,1714805442486,-450.69832707,0.00041095,30]
[325390723,1714805442499,-500.0,0.00041095,30]
[325390724,1714805442508,-614.66,0.00041095,30]
[325390725,1714805442517,-500.0,0.00041095,30]
[325390726,1714805442527,-500.0,0.00041095,30]
[325390727,1714805442536,-500.0,0.00041095,30]
[325390728,1714805442545,-592.51,0.00041095,30]
[325390729,1714805442554,-500.0,0.00041095,30]
[325390730,1714805442563,-1126.86,0.00041095,30]
[325390731,1714805442573,-500.0,0.00041095,30]
[325390732,1714805442583,-500.0,0.00041095,30]
[325390733,1714805442593,-707.09,0.00041095,30]
[325390734,1714805442603,-500.0,0.00041095,30]
[325390735,1714805442612,-714.0,0.00041095,30]
[325390736,1714805442622,-500.0,0.00041095,30]
[325390737,1714805442631,-1049.17,0.00041095,30]
[325390738,1714805442641,-630.83,0.00041095,30]
[325390739,1714805442651,-516.41277682,0.00041095,30]
[325390740,1714805442661,-539.0,0.00041095,30]
[325390741,1714805442671,-500.0,0.00041095,30]
[325390742,1714805442680,-500.0,0.00041095,30]
[325390743,1714805442690,-500.0,0.00041095,30]
[325390744,1714805442700,-692.03,0.00041095,30]
[325390745,1714805442709,-500.0,0.00041095,30]
[325390746,1714805442718,-500.0,0.00041095,30]
[325390747,1714805442728,-1003.37,0.00041095,30]
[325390748,1714805442739,-500.0,0.00041095,30]
[325390749,1714805442748,-473.60834302,0.00041095,30]
[325390750,1714805442758,-500.0,0.00041095,30]
[325390751,1714805442767,-500.0,0.00041095,30]
[325390752,1714805442777,-500.0,0.00041095,30]
[325390753,1714805442787,-500.0,0.00041095,30]
[325390754,1714805442796,-850.26,0.00041095,30]
[325390755,1714805442806,-688.9,0.00041095,30]
[325390756,1714805442815,-669.34,0.00041095,30]
[325390757,1714805442825,-500.0,0.00041095,30]
[325390758,1714805442834,-500.0,0.00041095,30]
[325390759,1714805442843,-500.0,0.00041095,30]
[325390760,1714805442853,-500.0,0.00041095,30]
[325390762,1714805442863,-547.54,0.00041095,30]
[325390764,1714805442873,-817.07,0.00041095,30]
[325390766,1714805442882,-500.0,0.00041095,30]
[325390768,1714805442891,-874.42,0.00041095,30]
[325390770,1714805442902,-500.0,0.00041095,30]
[325390772,1714805442911,-1504.02,0.00041095,30]
[325390775,1714805442926,-500.0,0.00041095,30]
[325390776,1714805442935,-500.0,0.00041095,30]
[325390777,1714805442945,-1045.01,0.00041095,30]
[325390778,1714805442954,-500.0,0.00041095,30]
[325390779,1714805442964,-500.0,0.00041095,30]
[325390780,1714805442974,-500.0,0.00041095,30]
[325390781,1714805442983,-1325.93,0.00041095,30]
[325390782,1714805442994,-1806.6,0.00041095,30]
[325390783,1714805443003,-500.0,0.00041095,30]
[325390784,1714805443013,-500.0,0.00041095,30]
[325390785,1714805443023,-671.82,0.00041095,30]
[325390786,1714805443032,-500.0,0.00041095,30]
[325390787,1714805443041,-500.0,0.00041095,30]
[325390788,1714805443051,-1358.69,0.00041095,30]
[325390789,1714805443060,-500.0,0.00041095,30]
[325390790,1714805443070,-1625.59,0.00041095,30]
[325390791,1714805443079,-959.71,0.00041095,30]
[325390792,1714805443090,-757.06,0.00041095,30]
[325390793,1714805443100,-500.0,0.00041095,30]
[325390794,1714805443109,-500.0,0.00041095,30]
[325390795,1714805443118,-1205.38,0.00041095,30]
[325390796,1714805443128,-500.0,0.00041095,30]
[325390797,1714805443137,-500.0,0.00041095,30]
[325390798,1714805443147,-1885.1,0.00041095,30]
[325390799,1714805443156,-775.82,0.00041095,30]
[325390800,1714805443166,-500.0,0.00041095,30]
[325390801,1714805443175,-648.23027683,0.00041095,30]
[325390802,1714805443185,-500.0,0.00041095,30]
[325390803,1714805443195,-526.95,0.00041095,30]
[325390804,1714805443204,-230.56912967,0.00041095,30]
[325390805,1714805443214,-500.0,0.00041095,30]
[325390806,1714805443223,-892.19,0.00041095,30]
[325390807,1714805443232,-1068.75,0.00041095,30]
[325390808,1714805443243,-500.0,0.00041095,30]
[325390809,1714805443253,-500.0,0.00041095,30]
[325390810,1714805443262,-523.77,0.00041095,30]
[325390811,1714805443272,-995.07,0.00041095,30]
[325390812,1714805443281,-429.95161038,0.00041095,30]
[325390813,1714805443291,-500.0,0.00041095,30]
[325390814,1714805443300,-500.0,0.00041095,30]
[325390815,1714805443310,-500.0,0.00041095,30]
[325390816,1714805443319,-1090.35,0.00041095,30]
[325390817,1714805443329,-500.0,0.00041095,30]
[325390818,1714805443338,-1238.66,0.00041095,30]
[325390819,1714805443348,-500.0,0.00041095,30]
[325390820,1714805443357,-500.0,0.00041095,30]
[325390821,1714805443367,-791.03,0.00041095,30]
[325390822,1714805443376,-500.0,0.00041095,30]
[325390823,1714805443385,-500.0,0.00041095,30]
[325390824,1714805443395,-500.0,0.00041095,30]
[325390825,1714805443405,-1391.72,0.00041095,30]
[325390826,1714805443414,-838.6,0.00041095,7]
[325390827,1714805443424,-500.0,0.00041095,30]
[325390828,1714805443434,-539.08,0.00041095,30]
[325390829,1714805443444,-500.0,0.00041095,30]
[325390830,1714805443454,-751.74,0.00041095,30]
[325390831,1714805443464,-500.0,0.00041095,30]
[325390832,1714805443473,-598.76,0.00041095,30]
[325390833,1714805443482,-500.0,0.00041095,30]
[325390834,1714805443494,-784.83,0.00041095,30]
[325390835,1714805443504,-1980.32,0.00041095,30]
[325390836,1714805443513,-561.22181075,0.00041095,30]
[325390837,1714805443523,-500.0,0.00041095,30]
[325390838,1714805443533,-692.08,0.00041095,30]
[325390839,1714805443542,-500.0,0.00041095,30]
[325390841,1714805443552,-1053.78,0.00041095,30]
[325390843,1714805443561,-894.7,0.00041095,30]
[325390845,1714805443571,-1228.83,0.00041095,30]
[325390846,1714805443581,-1368.35,0.00041095,30]
[325390847,1714805443591,-500.0,0.00041095,30]
[325390848,1714805443601,-1149.66,0.00041095,30]
[325390849,1714805443610,-501.13519142,0.00041095,30]
[325390850,1714805443620,-500.0,0.00041095,30]
[325390851,1714805443629,-500.0,0.00041095,30]
[325390852,1714805443639,-500.0,0.00041095,30]
[325390853,1714805443648,-823.08,0.00041095,30]
[325390854,1714805443658,-500.0,0.00041095,30]
[325390855,1714805443667,-500.0,0.00041095,30]
[325390856,1714805443676,-1072.75,0.00041095,30]
[325390857,1714805443686,-500.0,0.00041095,30]
[325390858,1714805443695,-1393.8,0.00041095,30]
[325390859,1714805443704,-500.0,0.00041095,30]
[325390860,1714805443714,-500.0,0.00041095,30]
[325390861,1714805443723,-849.39,0.00041095,30]
[325390862,1714805443732,-500.0,0.00041095,30]
[325390863,1714805443742,-1616.66,0.00041095,30]
[325390864,1714805443752,-500.0,0.00041095,30]
[325390865,1714805443761,-1731.52,0.00041095,30]
[325390866,1714805443771,-1935.49,0.00041095,30]
[325390867,1714805443780,-1264.21,0.00041095,30]